fUSD/lending_fUSD_20240107
["ID","MTS","AMOUNT","RATE_DAILY","PERIOD"]
[310658254,1704637878282,-1245.12941738,0.00025,2]
[310658255,1704637878293,-600.0,0.00025,3]
[310658256,1704637878304,-150.0,0.00025,2]
[310658257,1704637878315,-775.42,0.00025017,2]
[310658258,1704637878325,-400.86,0.00025057,2]
[310658259,1704637878334,-167.0,0.00025103,2]
[310658260,1704637878344,-500.0,0.00025273,2]
[310658261,1704637878397,-613.75,0.00025273,2]
[310658262,1704637878407,-500.0,0.00025273,2]
[310658263,1704637878416,-3039.55,0.00025273,2]
[310658264,1704637878426,-500.0,0.00025273,2]
[310658265,1704637878435,-500.0,0.00025273,2]
[310658266,1704637878445,-517.06,0.00025273,2]
[310658267,1704637878454,-500.0,0.00025273,2]
[310658268,1704637878464,-500.0,0.00025273,2]
[310658269,1704637878473,-2391.46,0.00025273,2]
[310658270,1704637878483,-544.16,0.00025273,2]
[310658271,1704637878492,-500.0,0.00025273,2]
[310658272,1704637878501,-1144.28,0.00025273,2]
[310658273,1704637878511,-603.59,0.00025273,2]
[310658274,1704637878520,-500.0,0.00025273,2]
[310658275,1704637878534,-1416.48,0.00025274,2]
[310658276,1704637878544,-400.96,0.00025572,2]
[310658277,1704637878558,-972.61,0.00025785,2]
[310658278,1704637878567,-7305.55,0.00025785,2]
[310658279,1704637878576,-239.7237659,0.00025785,2]
[310658280,1704637878586,-500.0,0.00025785,2]
[310658281,1704637878596,-574.18,0.00025785,2]
[310658282,1704637878606,-500.0,0.00025785,2]
[310658283,1704637878617,-500.0,0.00025785,2]
[310658284,1704637878626,-653.0,0.00025785,2]
[310658285,1704637878636,-500.0,0.00025785,2]
[310658286,1704637878649,-857.86,0.00025785,2]
[310658287,1704637878660,-1017.17,0.00025785,2]
[310658288,1704637878670,-791.43,0.00025785,2]
[310658289,1704637878679,-819.35,0.00025785,2]
[310658290,1704637878689,-3190.97,0.00025785,2]
[310658291,1704637878698,-628.85,0.00025785,2]
[310658292,1704637878708,-500.0,0.00025785,2]
[310658293,1704637878717,-641.83,0.00025785,2]
[310658294,1704637878728,-500.0,0.00025808,2]
[310658295,1704637878737,-1771.30019938,0.00025848,2]
[310658296,1704637878747,-167.0,0.00025905,2]
[310658297,1704637878757,-500.0,0.00025997,2]
[310658298,1704637878768,-150.0,0.00026079,2]
[310658299,1704637878778,-400.86,0.00026146,2]
[310658300,1704637878787,-1416.48,0.00026162,2]
[310658301,1704637878797,-500.0,0.00026185,2]
[310658302,1704637878808,-1000.0,0.00026288,3]
[310658303,1704637878819,-1000.0,0.00026288,3]
[310658304,1704637878828,-187.46180191,0.000263,4]
[310658305,1704637878838,-175.61923221,0.00026365,2]
[310658306,1704637878847,-191.90408368,0.00026365,2]
[310658307,1704637878857,-191.90408367,0.00026365,2]
[310658308,1704637878867,-1000.0,0.00026365,3]
[310658309,1704637878877,-1000.0,0.00026365,3]
[310658310,1704637878886,-500.0,0.00026365,2]
[310658311,1704637878896,-1528.23048776,0.00026365,2]
[310658312,1704637878905,-1000.0,0.00026365,3]
[310658313,1704637878914,-3324.53990046,0.00026365,2]
[310658314,1704637878924,-1145.13512667,0.00026365,2]
[310658315,1704637878934,-7558.10592567,0.00026365,2]
[310658316,1704637878943,-1000.0,0.00026365,3]
[310658317,1704637878953,-1000.0,0.00026365,3]
[310658318,1704637878962,-1425.10946407,0.00026365,3]
[310658319,1704637878973,-1826.72610578,0.00026365,2]
[310658320,1704637878982,-1000.0,0.00026365,3]
[310658321,1704637878991,-500.0,0.00026365,2]
[310658322,1704637879000,-500.0,0.00026374,2]
[310658323,1704637879010,-177.65,0.00026547,2]
[310658324,1704637879019,-400.96,0.0002655,2]
[310658325,1704637879029,-500.0,0.00026562,2]
[310658326,1704637879039,-167.0,0.00026707,2]
[310658327,1704637879049,-200.0,0.00026734,2]
[310658328,1704637879061,-800.0,0.00026734,2]
[310658329,1704637879070,-500.0,0.00026751,2]
[310658330,1704637879079,-1000.0,0.0002679,2]
[310658331,1704637879088,-500.0,0.00026939,2]
[310658332,1704637879098,-1771.30019938,0.00026974,2]
[310658333,1704637879107,-650.0,0.00027,3]
[310658334,1704637879116,-1416.48,0.00027049,2]
[310658335,1704637879126,-500.0,0.00027128,2]
[310658336,1704637879135,-280.72,0.00027169,2]
[310658337,1704637879145,-174.41039487,0.00027197,2]
[310658338,1704637879154,-454.56,0.00027296,2]
[310658339,1704637879164,-230.92,0.00027296,2]
[310658340,1704637879174,-846.81,0.00027296,2]
[310658341,1704637879183,-846.81,0.00027296,2]
[310658342,1704637879192,-386.44,0.00027296,2]
[310658343,1704637879201,-377.8,0.00027296,2]
[310658344,1704637879211,-500.0,0.00027296,2]
[310658345,1704637879222,-500.0,0.00027296,2]
[310658346,1704637879232,-500.0,0.00027296,2]
[310658347,1704637879241,-500.0,0.00027296,2]
[310658348,1704637879250,-500.0,0.00027296,2]
[310658349,1704637879260,-500.0,0.00027296,2]
[310658350,1704637879269,-500.0,0.00027296,2]
[310658351,1704637879279,-500.0,0.00027296,2]
[310658352,1704637879288,-500.0,0.00027296,2]
[310658353,1704637879299,-500.0,0.00027296,2]
[310658354,1704637879312,-500.0,0.00027296,2]
[310658355,1704637879320,-500.0,0.00027296,2]
[310658356,1704637879328,-500.0,0.00027296,2]
[310658357,1704637879337,-500.0,0.00027296,2]
[310658358,1704637879345,-500.0,0.00027296,2]
[310658359,1704637879354,-500.0,0.00027296,2]
[310658360,1704637879363,-516.12408535,0.00027296,2]
[310658361,1704637879372,-500.0,0.00027296,2]
[310658362,1704637879382,-500.0,0.00027296,2]
[310658363,1704637879391,-500.0,0.00027296,2]
[310658364,1704637879401,-500.0,0.00027296,2]
[310658365,1704637879410,-500.0,0.00027296,2]
[310658366,1704637879420,-500.0,0.00027296,2]
[310658367,1704637879429,-500.0,0.00027296,2]
[310658368,1704637879438,-500.0,0.00027296,2]
[310658369,1704637879447,-500.0,0.00027296,2]
[310658370,1704637879456,-500.0,0.00027296,2]
[310658371,1704637879466,-202.85558284,0.00027296,2]
[310658372,1704637879475,-500.0,0.00027296,2]
[310658373,1704637879485,-500.0,0.00027296,2]
[310658374,1704637879494,-500.0,0.00027296,2]
[310658375,1704637879503,-500.0,0.00027296,2]
[310658376,1704637879513,-500.0,0.00027296,2]
[310658377,1704637879522,-500.0,0.00027296,2]
[310658378,1704637879532,-500.0,0.00027296,2]
[310658379,1704637879541,-500.0,0.00027296,2]
[310658380,1704637879551,-1551.04,0.00027296,2]
[310658381,1704637879562,-500.0,0.00027296,2]
[310658382,1704637879571,-500.0,0.00027296,2]
[310658383,1704637879580,-4259.52,0.00027296,2]
[310658384,1704637879590,-408.82,0.00027296,2]
[310658385,1704637879599,-575.24,0.00027296,2]
[310658386,1704637879609,-500.0,0.00027296,2]
[310658387,1704637879618,-500.0,0.00027296,2]
[310658388,1704637879628,-500.0,0.00027296,2]
[310658389,1704637879637,-500.0,0.00027296,2]
[310658390,1704637879646,-2016.6,0.00027296,2]
[310658391,1704637879656,-500.0,0.00027296,2]
[310658392,1704637879665,-500.0,0.00027296,2]
[310658393,1704637879675,-500.0,0.00027296,2]
[310658394,1704637879684,-500.0,0.00027296,2]
[310658395,1704637879695,-418.74,0.00027296,2]
[310658396,1704637879704,-232.28,0.00027296,2]
[310658397,1704637879715,-500.0,0.00027296,2]
[310658398,1704637879724,-387.03806308,0.00027296,2]
[310658399,1704637879733,-500.0,0.00027296,2]
[310658400,1704637879744,-1681.68,0.00027296,2]
[310658401,1704637879754,-500.0,0.00027296,2]
[310658402,1704637879763,-500.0,0.00027296,2]
[310658403,1704637879773,-500.0,0.00027296,2]
[310658404,1704637879783,-500.0,0.00027296,2]
[310658405,1704637879793,-500.0,0.00027296,2]
[310658406,1704637879802,-529.37,0.00027296,2]
[310658407,1704637879813,-403.84,0.00027296,2]
[310658408,1704637879822,-311.92488198,0.00027296,2]
[310658409,1704637879832,-500.0,0.00027296,2]
[310658410,1704637879842,-500.0,0.00027296,2]
[310658411,1704637879851,-378.52979541,0.00027296,2]
[310658412,1704637879861,-500.0,0.00027296,2]
[310658414,1704637879871,-500.0,0.00027296,2]
[310658415,1704637879880,-1024.89,0.00027296,2]
[310658416,1704637879889,-500.0,0.00027296,2]
[310658417,1704637879899,-500.0,0.00027296,2]
[310658418,1704637879908,-500.0,0.00027296,2]
[310658419,1704637879918,-383.74,0.00027296,2]
[310658420,1704637879927,-500.0,0.00027296,2]
[310658421,1704637879937,-500.0,0.00027296,2]
[310658422,1704637879946,-500.0,0.00027296,2]
[310658423,1704637879955,-500.0,0.00027296,2]
[310658425,1704637879964,-500.0,0.00027296,2]
[310658426,1704637879974,-1027.53,0.00027296,2]
[310658427,1704637879983,-500.0,0.00027296,2]
[310658428,1704637879992,-500.0,0.00027296,2]
[310658429,1704637880001,-500.0,0.00027296,2]
[310658430,1704637880011,-500.0,0.00027296,2]
[310658431,1704637880021,-500.0,0.00027296,2]
[310658432,1704637880031,-500.0,0.00027296,2]
[310658433,1704637880041,-500.0,0.00027296,2]
[310658434,1704637880051,-781.73,0.00027296,2]
[310658436,1704637880063,-500.0,0.00027296,2]
[310658437,1704637880073,-500.0,0.00027296,2]
[310658438,1704637880084,-500.0,0.00027296,2]
[310658439,1704637880093,-500.0,0.00027296,2]
[310658440,1704637880103,-1482.03,0.00027296,2]
[310658441,1704637880113,-542.24323185,0.00027296,2]
[310658442,1704637880123,-500.0,0.00027296,2]
[310658443,1704637880132,-500.0,0.00027296,2]
[310658444,1704637880142,-500.0,0.00027296,2]
[310658445,1704637880152,-500.0,0.00027296,2]
[310658447,1704637880161,-582.89,0.00027296,2]
[310658448,1704637880171,-500.0,0.00027296,2]
[310658449,1704637880181,-500.0,0.00027296,2]
[310658450,1704637880192,-500.0,0.00027296,2]
[310658451,1704637880201,-500.0,0.00027296,2]
[310658452,1704637880212,-500.0,0.00027296,2]
[310658453,1704637880222,-500.0,0.00027296,2]
[310658454,1704637880232,-500.0,0.00027296,2]
[310658455,1704637880243,-500.0,0.00027296,2]
[310658456,1704637880253,-937.95,0.00027296,2]
[310658457,1704637880263,-500.0,0.00027296,2]
[310658458,1704637880273,-500.0,0.00027296,2]
[310658460,1704637880283,-100000.0,0.00027297,2]
[310658461,1704637880294,-500.0,0.00027316,2]
[310658462,1704637880305,-1000.0,0.00027338,2]
[310658463,1704637880315,-500.0,0.00027396,2]
[310658464,1704637880325,-613.75,0.00027396,2]
[310658465,1704637880335,-500.0,0.00027396,2]
[310658466,1704637880345,-3039.55,0.00027396,2]
[310658467,1704637880356,-500.0,0.00027396,2]
[310658468,1704637880366,-500.0,0.00027396,2]
[310658469,1704637880384,-517.06,0.00027396,2]
[310658470,1704637880394,-500.0,0.00027396,2]
[310658472,1704637880404,-500.0,0.00027396,2]
[310658473,1704637880414,-2391.46,0.00027396,2]
[310658474,1704637880424,-544.16,0.00027396,2]
[310658475,1704637880434,-445.64196415,0.00027396,2]
[310658476,1704637880444,-1144.28,0.00027396,2]
[310658477,1704637880454,-603.59,0.00027396,2]
[310658478,1704637880464,-500.0,0.00027396,2]
[310658479,1704637880473,-506.32370425,0.00027397,2]
[310658480,1704637880483,-3000.0,0.00027397,2]
[310658481,1704637880492,-3000.0,0.00027397,2]
[310658483,1704637880502,-3000.0,0.00027397,2]
[310658484,1704637880511,-3000.0,0.00027397,2]
[310658485,1704637880520,-3000.0,0.00027397,2]
[310658486,1704637880530,-3000.0,0.00027397,2]
[310658487,1704637880540,-3000.0,0.00027397,2]
[310658488,1704637880549,-3000.0,0.00027397,2]
[310658489,1704637880560,-3000.0,0.00027397,2]
[310658490,1704637880570,-3573.5327,0.00027397,2]
[310658491,1704637880579,-1000.0,0.00027397,2]
[310658492,1704637880589,-1000.0,0.00027397,2]
[310658493,1704637880599,-2500.0,0.00027397,2]
[310658494,1704637880609,-155.0,0.00027397,2]
[310658495,1704637880619,-500.0,0.00027397,2]
[310658496,1704637880629,-517.38231531,0.00027397,2]
[310658498,1704637880639,-500.0,0.00027397,2]
[310658499,1704637880649,-500.0,0.00027397,2]
[310658500,1704637880659,-500.0,0.00027397,2]
[310658501,1704637880668,-250.0,0.00027397,2]
[310658502,1704637880678,-2130.0,0.00027397,4]
[310658503,1704637880688,-500.0,0.00027397,2]
[310658504,1704637880698,-2003.93,0.00027397,10]
[310658505,1704637880708,-1669.94,0.00027397,10]
[310658506,1704637880718,-1391.61,0.00027397,10]
[310658507,1704637880728,-200.0,0.000274,2]
[310658509,1704637880738,-250.0,0.000274,2]
[310658510,1704637880747,-1000.0,0.000274,2]
[310658511,1704637880757,-2000.0,0.000274,2]
[310658512,1704637880768,-376.72697829,0.000274,2]
[310658513,1704637880778,-300.0,0.000274,2]
[310658514,1704637880788,-3000.0,0.000274,2]
[310658515,1704637880798,-500.0,0.000274,2]
[310658516,1704637880810,-1113.13110644,0.0002744,2]
[310658517,1704637880820,-678.36270984,0.000275,4]
[310658518,1704637880830,-500.0,0.00027504,2]
[310658519,1704637880840,-167.0,0.00027509,2]
[310658520,1704637880850,-400.96,0.00027529,2]
[310658521,1704637880859,-500.0,0.00027693,2]
[310658522,1704637880870,-775.42,0.00027797,2]
[310658523,1704637880880,-500.0,0.00027881,2]
[310658525,1704637880890,-1000.0,0.00027886,2]
[310658526,1704637880900,-1416.48,0.00027937,2]
[310658527,1704637880909,-1381.06,0.00027943,2]
[310658528,1704637880919,-2115.91,0.00027943,2]
[310658529,1704637880928,-1652.68,0.00027943,2]
[310658530,1704637880938,-917.97,0.00027943,2]
[310658531,1704637880948,-332.45,0.00027943,2]
[310658532,1704637880959,-500.0,0.00027943,2]
[310658533,1704637880969,-500.0,0.00027943,2]
[310658535,1704637880979,-500.0,0.00027943,2]
[310658536,1704637880989,-500.0,0.00027943,2]
[310658537,1704637880999,-500.0,0.00027943,2]
[310658538,1704637881009,-500.0,0.00027943,2]
[310658539,1704637881018,-500.0,0.00027943,2]
[310658540,1704637881028,-500.0,0.00027943,2]
[310658541,1704637881038,-972.61,0.00027943,2]
[310658542,1704637881048,-500.0,0.00027943,2]
[310658543,1704637881059,-500.0,0.00027943,2]
[310658544,1704637881069,-7305.55,0.00027943,2]
[310658545,1704637881080,-500.0,0.00027943,2]
[310658546,1704637881090,-607.17,0.00027943,2]
[310658547,1704637881100,-500.0,0.00027943,2]
[310658548,1704637881110,-500.0,0.00027943,2]
[310658550,1704637881119,-500.0,0.00027943,2]
[310658551,1704637881129,-374.96338489,0.00027943,2]
[310658552,1704637881138,-1058.56,0.00027943,2]
[310658553,1704637881148,-500.0,0.00027943,2]
[310658554,1704637881158,-500.0,0.00027943,2]
[310658555,1704637881168,-500.0,0.00027943,2]
[310658556,1704637881179,-667.45,0.00027943,2]
[310658557,1704637881189,-543.32,0.00027943,2]
[310658558,1704637881200,-500.0,0.00027943,2]
[310658559,1704637881210,-500.0,0.00027943,2]
[310658560,1704637881219,-500.0,0.00027943,2]
[310658561,1704637881229,-627.29,0.00027943,2]
[310658562,1704637881240,-500.0,0.00027943,2]
[310658563,1704637881250,-574.18,0.00027943,2]
[310658564,1704637881260,-597.89,0.00027943,2]
[310658565,1704637881270,-500.0,0.00027943,2]
[310658566,1704637881280,-500.0,0.00027943,2]
[310658567,1704637881290,-526.43,0.00027943,2]
[310658568,1704637881300,-500.0,0.00027943,2]
[310658570,1704637881314,-541.28,0.00027943,2]
[310658571,1704637881324,-500.0,0.00027943,2]
[310658572,1704637881334,-218.98,0.00027943,2]
[310658573,1704637881344,-500.0,0.00027943,2]
[310658574,1704637881354,-514.11,0.00027943,2]
[310658575,1704637881364,-500.0,0.00027943,2]
[310658577,1704637881374,-653.0,0.00027943,2]
[310658578,1704637881384,-500.0,0.00027943,2]
[310658579,1704637881394,-500.0,0.00027943,2]
[310658580,1704637881405,-500.0,0.00027943,2]
[310658581,1704637881415,-857.86,0.00027943,2]
[310658583,1704637881424,-1017.17,0.00027943,2]
[310658584,1704637881435,-931.43,0.00027943,2]
[310658585,1704637881445,-500.0,0.00027943,2]
[310658586,1704637881455,-791.43,0.00027943,2]
[310658587,1704637881465,-427.01,0.00027943,2]
[310658588,1704637881476,-500.0,0.00027943,2]
[310658589,1704637881486,-819.35,0.00027943,2]
[310658590,1704637881496,-500.0,0.00027943,2]
[310658591,1704637881505,-500.0,0.00027943,2]
[310658592,1704637881515,-565.17718409,0.00027943,2]
[310658594,1704637881525,-3190.97,0.00027943,2]
[310658595,1704637881535,-500.0,0.00027943,2]
[310658596,1704637881545,-500.0,0.00027943,2]
[310658597,1704637881555,-500.0,0.00027943,2]
[310658598,1704637881566,-504.77,0.00027943,2]
[310658599,1704637881576,-500.0,0.00027943,2]
[310658600,1704637881586,-628.85,0.00027943,2]
[310658601,1704637881596,-196.45318429,0.00027943,2]
[310658602,1704637881606,-629.76,0.00027943,2]
[310658603,1704637881616,-500.0,0.00027943,2]
[310658604,1704637881626,-500.0,0.00027943,2]
[310658605,1704637881636,-525.86,0.00027943,2]
[310658606,1704637881646,-500.0,0.00027943,2]
[310658608,1704637881656,-641.83,0.00027943,2]
[310658609,1704637881667,-500.0,0.00027943,2]
[310658610,1704637881677,-3215.58,0.00027944,2]
[310658611,1704637881687,-3215.58,0.00027944,2]
[310658612,1704637881697,-3215.58,0.00027944,2]
[310658613,1704637881707,-3215.58,0.00027944,2]
[310658614,1704637881717,-3215.58,0.00027944,2]
[310658615,1704637881727,-3215.58,0.00027944,2]
[310658616,1704637881736,-3215.58,0.00027944,2]
[310658618,1704637881746,-3215.58,0.00027944,2]
[310658619,1704637881756,-3215.58,0.00027944,2]
[310658620,1704637881766,-3215.58,0.00027944,2]
[310658621,1704637881775,-24382.16,0.00027945,2]
[310658622,1704637881785,-1171.79,0.00027945,2]
[310658623,1704637881794,-846.81,0.00027999,2]
[310658624,1704637881804,-463.12,0.00027999,2]
[310658625,1704637881817,-369.66,0.00027999,2]
[310658626,1704637881826,-333.73704192,0.00027999,2]
[310658627,1704637881836,-150.46,0.00027999,2]
[310658628,1704637881847,-177.34,0.00027999,2]
[310658629,1704637881858,-500.0,0.00027999,2]
[310658631,1704637881870,-500.0,0.00027999,2]
[310658632,1704637881884,-500.0,0.00027999,2]
[310658633,1704637881894,-500.0,0.00027999,2]
[310658634,1704637881904,-500.0,0.00027999,2]
[310658635,1704637881914,-500.0,0.00027999,2]
[310658636,1704637881923,-500.0,0.00027999,2]
[310658637,1704637881933,-500.0,0.00027999,2]
[310658638,1704637881943,-500.0,0.00027999,2]
[310658639,1704637881953,-500.0,0.00027999,2]
[310658640,1704637881963,-385.99,0.00027999,2]
[310658641,1704637881973,-542.18045867,0.00027999,2]
[310658642,1704637881983,-500.0,0.00027999,2]
[310658643,1704637881993,-500.0,0.00027999,2]
[310658644,1704637882004,-500.0,0.00027999,2]
[310658645,1704637882013,-500.0,0.00027999,2]
[310658647,1704637882023,-500.0,0.00027999,2]
[310658648,1704637882032,-500.0,0.00027999,2]
[310658649,1704637882042,-500.0,0.00027999,2]
[310658650,1704637882051,-500.0,0.00027999,2]
[310658651,1704637882062,-500.0,0.00027999,2]
[310658652,1704637882072,-500.0,0.00027999,2]
[310658654,1704637882081,-500.0,0.00027999,2]
[310658655,1704637882091,-500.0,0.00027999,2]
[310658656,1704637882100,-500.0,0.00027999,2]
[310658657,1704637882110,-500.0,0.00027999,2]
[310658658,1704637882121,-500.0,0.00027999,2]
[310658659,1704637882130,-729.32,0.00028,2]
[310658660,1704637882140,-687.02354933,0.00028,2]
[310658661,1704637882150,-202.53914952,0.00028,2]
[310658662,1704637882159,-3000.0,0.00028,2]
[310658663,1704637882169,-520.387649,0.00028,2]
[310658664,1704637882179,-3834.1434954,0.00028,2]
[310658665,1704637882188,-500.0,0.0002807,2]
[310658667,1704637882198,-1771.30019938,0.000281,2]
[310658668,1704637882209,-365.23034946,0.00028149,2]
[310658669,1704637882220,-588.0,0.00028219,2]
[310658670,1704637882230,-588.0,0.00028219,2]
[310658671,1704637882241,-707.22,0.00028219,2]
[310658672,1704637882250,-500.0,0.00028258,2]
[310658674,1704637882416,-167.0,0.00028311,2]
[310658676,1704637882426,-1000.0,0.00028434,2]
[310658677,1704637882436,-500.0,0.00028447,2]
[310658678,1704637882447,-267.89545454,0.00028499,2]
[310658679,1704637882457,-400.96,0.00028507,2]
[310658680,1704637882467,-189.46433526,0.00028535,2]
[310658681,1704637882477,-322.11967009,0.00028595,2]
[310658682,1704637882486,-500.0,0.00028635,2]
[310658683,1704637882495,-155.0,0.00028767,2]
[310658684,1704637882505,-177.65,0.00028811,2]
[310658686,1704637882515,-500.0,0.00028824,2]
[310658687,1704637882524,-1416.48,0.00028825,2]
[310658688,1704637882535,-5746.0,0.00028866,30]
[310658689,1704637882544,-1000.0,0.00028982,2]
[310658690,1704637882554,-3000.0,0.00029,2]
[310658691,1704637882564,-700.0,0.00029,3]
[310658692,1704637882574,-500.0,0.00029012,2]
[310658693,1704637882583,-500.0,0.00029201,2]
[310658694,1704637882594,-1771.30019938,0.00029225,2]
[310658695,1704637882604,-203.0,0.00029225,2]
[310658696,1704637882613,-500.0,0.0002928,2]
[310658697,1704637882623,-613.75,0.0002928,2]
[310658699,1704637882633,-500.0,0.0002928,2]
[310658700,1704637882642,-3039.55,0.0002928,2]
[310658701,1704637882652,-333.02251425,0.0002928,2]
[310658702,1704637882661,-500.0,0.0002928,2]
[310658703,1704637882671,-517.06,0.0002928,2]
[310658704,1704637882680,-500.0,0.0002928,2]
[310658705,1704637882690,-500.0,0.0002928,2]
[310658706,1704637882700,-2391.46,0.0002928,2]
[310658707,1704637882709,-544.16,0.0002928,2]
[310658708,1704637882719,-1144.28,0.0002928,2]
[310658709,1704637882729,-603.59,0.0002928,2]
[310658710,1704637882739,-500.0,0.0002928,2]
[310658711,1704637882750,-152.42,0.00029281,2]
[310658712,1704637882759,-330.78954922,0.00029281,2]
[310658714,1704637882768,-500.0,0.00029281,2]
[310658715,1704637882777,-500.0,0.00029281,2]
[310658716,1704637882786,-500.0,0.00029281,2]
[310658717,1704637882796,-279.76,0.00029281,2]
[310658718,1704637882809,-178.08672896,0.00029281,2]
[310658719,1704637882818,-313.3,0.00029281,2]
[310658720,1704637882827,-323.29,0.00029281,2]
[310658721,1704637882837,-527.16989535,0.00029281,2]
[310658722,1704637882846,-257.66,0.00029281,2]
[310658723,1704637882856,-500.0,0.00029281,2]
[310658724,1704637882866,-500.0,0.00029281,2]
[310658725,1704637882875,-500.0,0.00029281,2]
[310658726,1704637882885,-157.98,0.00029281,2]
[310658727,1704637882894,-171.19983902,0.00029281,2]
[310658729,1704637882904,-634.32,0.00029281,2]
[310658730,1704637882913,-500.0,0.00029281,2]
[310658731,1704637882923,-500.0,0.00029281,2]
[310658732,1704637882932,-500.0,0.00029281,2]
[310658733,1704637882941,-217.14,0.00029281,2]
[310658734,1704637882950,-500.0,0.00029281,2]
[310658735,1704637882960,-184.17039273,0.00029281,2]
[310658736,1704637882969,-500.0,0.00029281,2]
[310658737,1704637882980,-469.54444296,0.00029281,2]
[310658738,1704637882990,-500.0,0.00029281,2]
[310658739,1704637882999,-500.0,0.00029281,2]
[310658740,1704637883009,-500.0,0.00029281,2]
[310658742,1704637883018,-500.0,0.00029281,2]
[310658743,1704637883027,-368.7298056,0.00029281,2]
[310658744,1704637883037,-500.0,0.00029281,2]
[310658745,1704637883047,-500.0,0.00029281,2]
[310658746,1704637883059,-500.0,0.00029281,2]
[310658747,1704637883068,-500.0,0.00029281,2]
[310658748,1704637883078,-509.56,0.00029281,2]
[310658750,1704637883087,-500.0,0.00029281,2]
[310658751,1704637883096,-500.0,0.00029281,2]
[310658752,1704637883106,-500.0,0.00029281,2]
[310658753,1704637883115,-500.0,0.00029281,2]
[310658755,1704637883125,-500.0,0.00029281,2]
[310658756,1704637883135,-500.0,0.00029281,2]
[310658757,1704637883144,-575.35557732,0.00029281,2]
[310658758,1704637883153,-500.0,0.00029281,2]
[310658759,1704637883163,-500.0,0.00029281,2]
[310658760,1704637883172,-500.0,0.00029281,2]
[310658761,1704637883182,-500.0,0.00029281,2]
[310658762,1704637883191,-500.0,0.00029281,2]
[310658763,1704637883201,-500.0,0.00029281,2]
[310658764,1704637883211,-500.0,0.00029281,2]
[310658766,1704637883220,-500.0,0.00029281,2]
[310658767,1704637883229,-500.0,0.00029281,2]
[310658768,1704637883239,-500.0,0.00029281,2]
[310658769,1704637883249,-500.0,0.00029281,2]
[310658770,1704637883259,-500.0,0.00029281,2]
[310658771,1704637883268,-500.0,0.00029281,2]
[310658772,1704637883278,-442.45449506,0.00029281,2]
[310658773,1704637883287,-500.0,0.00029281,2]
[310658774,1704637883299,-500.0,0.00029281,2]
[310658776,1704637883312,-500.0,0.00029281,2]
[310658777,1704637883321,-500.0,0.00029281,2]
[310658778,1704637883331,-544.0110601,0.00029281,2]
[310658779,1704637883340,-500.0,0.00029281,2]
[310658780,1704637883349,-500.0,0.00029281,2]
[310658781,1704637883358,-500.0,0.00029281,2]
[310658782,1704637883368,-500.0,0.00029281,2]
[310658783,1704637883377,-500.0,0.00029281,2]
[310658784,1704637883387,-515.45044669,0.00029281,2]
[310658785,1704637883397,-500.0,0.00029281,2]
[310658786,1704637883407,-500.0,0.00029281,2]